fUST/lending_fUST_20250723
["ID","MTS","AMOUNT","RATE_DAILY","PERIOD"]
[374212026,1753245046317,-460.0,0.00022191,2]
[374212028,1753245046327,-271.37740872,0.00022191,2]
[374212030,1753245046336,-460.0,0.00022191,2]
[374212032,1753245046345,-555.28289674,0.00022191,2]
[374212034,1753245046355,-460.0,0.00022191,2]
[374212036,1753245046364,-460.0,0.00022191,2]
[374212038,1753245046373,-460.0,0.00022191,2]
[374212040,1753245046383,-460.0,0.00022191,2]
[374212041,1753245046392,-462.72798041,0.00022191,2]
[374212044,1753245046401,-203.707735,0.00022191,2]
[374212046,1753245046411,-464.53452496,0.00022191,2]
[374212047,1753245046420,-460.0,0.00022191,2]
[374212049,1753245046430,-464.98555228,0.00022191,2]
[374212051,1753245046439,-460.0,0.00022191,2]
[374212053,1753245046448,-460.0,0.00022191,2]
[374212056,1753245046458,-460.0,0.00022191,2]
[374212057,1753245046467,-460.0,0.00022191,2]
[374212059,1753245046477,-460.0,0.00022191,2]
[374212061,1753245046487,-460.0,0.00022191,2]
[374212064,1753245046496,-460.0,0.00022191,2]
[374212065,1753245046505,-460.0,0.00022191,2]
[374212067,1753245046515,-553.42025488,0.00022191,2]
[374212070,1753245046524,-460.0,0.00022191,2]
[374212071,1753245046533,-460.0,0.00022191,2]
[374212073,1753245046543,-460.0,0.00022191,2]
[374212075,1753245046552,-464.04047665,0.00022191,2]
[374212077,1753245046562,-460.0,0.00022191,2]
[374212079,1753245046571,-460.0,0.00022191,2]
[374212081,1753245046581,-278.33876015,0.00022191,2]
[374212083,1753245046590,-460.0,0.00022191,2]
[374212085,1753245046599,-460.0,0.00022191,2]
[374212087,1753245046608,-462.88259997,0.00022191,2]
[374212089,1753245046617,-460.0,0.00022191,2]
[374212091,1753245046627,-465.03226255,0.00022191,2]
[374212093,1753245046636,-467.37281588,0.00022191,2]
[374212095,1753245046645,-460.0,0.00022191,2]
[374212097,1753245046654,-460.0,0.00022191,2]
[374212099,1753245046663,-460.0,0.00022191,2]
[374212101,1753245046672,-465.4185732,0.00022191,2]
[374212103,1753245046681,-460.0,0.00022191,2]
[374212105,1753245046689,-460.0,0.00022191,2]
[374212107,1753245046698,-460.0,0.00022191,2]
[374212109,1753245046707,-460.0,0.00022191,2]
[374212111,1753245046716,-460.0,0.00022191,2]
[374212113,1753245046726,-460.0,0.00022191,2]
[374212115,1753245046736,-307.67881497,0.00022191,2]
[374212117,1753245046745,-460.0,0.00022191,2]
[374212119,1753245046755,-465.83620065,0.00022191,2]
[374212121,1753245046764,-460.0,0.00022191,2]
[374212123,1753245046773,-460.0,0.00022191,2]
[374212125,1753245046782,-468.07327526,0.00022191,2]
[374212127,1753245046791,-460.0,0.00022191,2]
[374212129,1753245046801,-466.3109113,0.00022191,2]
[374212131,1753245046810,-476.94476119,0.00022191,2]
[374212133,1753245046819,-460.0,0.00022191,2]
[374212135,1753245046828,-306.74130257,0.00022191,2]
[374212137,1753245046837,-460.0,0.00022191,2]
[374212138,1753245046848,-460.0,0.00022191,2]
[374212139,1753245046857,-460.0,0.00022191,2]
[374212140,1753245046866,-460.0,0.00022191,2]
[374212141,1753245046875,-464.30851347,0.00022191,2]
[374212142,1753245046884,-2224.01,0.00022191,2]
[374212143,1753245046894,-460.0,0.00022191,2]
[374212145,1753245046903,-466.18785624,0.00022191,2]
[374212147,1753245046912,-460.0,0.00022191,2]
[374212148,1753245046922,-460.0,0.00022191,2]
[374212151,1753245046931,-460.0,0.00022191,2]
[374212153,1753245046941,-463.73535859,0.00022191,2]
[374212155,1753245046950,-460.0,0.00022191,2]
[374212157,1753245046960,-460.0,0.00022191,2]
[374212159,1753245046968,-460.0,0.00022191,2]
[374212161,1753245046978,-471.6876449,0.00022191,2]
[374212163,1753245046987,-466.52895291,0.00022191,2]
[374212165,1753245046996,-460.0,0.00022191,2]
[374212167,1753245047006,-465.97085089,0.00022191,2]
[374212169,1753245047014,-460.0,0.00022191,2]
[374212171,1753245047023,-460.0,0.00022191,2]
[374212172,1753245047032,-151.0,0.00022191,7]
[374212174,1753245047041,-151.0,0.00022191,7]
[374212177,1753245047051,-460.0,0.00022191,2]
[374212179,1753245047060,-599.01998914,0.00022191,2]
[374212181,1753245047069,-460.0,0.00022191,2]
[374212183,1753245047078,-460.0,0.00022191,2]
[374212185,1753245047087,-465.1315204,0.00022191,2]
[374212187,1753245047097,-460.0,0.00022191,2]
[374212188,1753245047106,-460.0,0.00022191,2]
[374212190,1753245047115,-460.0,0.00022191,2]
[374212193,1753245047124,-460.0,0.00022191,2]
[374212195,1753245047133,-460.0,0.00022191,2]
[374212197,1753245047143,-582.446594,0.00022191,2]
[374212198,1753245047152,-460.0,0.00022191,2]
[374212201,1753245047161,-463.42132352,0.00022191,2]
[374212203,1753245047171,-460.0,0.00022191,2]
[374212204,1753245047179,-440.0,0.00022191,2]
[374212206,1753245047189,-460.0,0.00022191,2]
[374212209,1753245047198,-462.90148394,0.00022191,2]
[374212211,1753245047207,-460.0,0.00022191,2]
[374212213,1753245047216,-1306.7,0.00022191,2]
[374212215,1753245047226,-460.0,0.00022191,2]
[374212217,1753245047235,-460.0,0.00022191,2]
[374212218,1753245047245,-460.0,0.00022191,2]
[374212220,1753245047254,-465.96138578,0.00022191,2]
[374212222,1753245047263,-460.0,0.00022191,2]
[374212224,1753245047272,-460.0,0.00022191,2]
[374212226,1753245047282,-460.0,0.00022191,2]
[374212229,1753245047291,-460.0,0.00022191,2]
[374212231,1753245047300,-599.0204205,0.00022191,2]
[374212232,1753245047309,-460.0,0.00022191,2]
[374212234,1753245047318,-479.33626948,0.00022191,2]
[374212237,1753245047328,-465.63349747,0.00022191,2]
[374212239,1753245047337,-460.0,0.00022191,2]
[374212241,1753245047346,-460.0,0.00022191,2]
[374212242,1753245047355,-460.0,0.00022191,2]
[374212244,1753245047364,-560.49233873,0.00022191,2]
[374212255,1753245047448,-460.0,0.00022191,2]
[374212257,1753245047458,-460.0,0.00022191,2]
[374212259,1753245047467,-462.76741128,0.00022191,2]
[374212261,1753245047476,-460.0,0.00022191,2]
[374212263,1753245047485,-460.0,0.00022191,2]
[374212265,1753245047494,-998.31,0.00022191,2]
[374212267,1753245047503,-460.0,0.00022191,2]
[374212269,1753245047512,-460.0,0.00022191,2]
[374212271,1753245047521,-460.0,0.00022191,2]
[374212273,1753245047530,-460.0,0.00022191,2]
[374212275,1753245047539,-466.64434431,0.00022191,2]
[374212277,1753245047548,-460.0,0.00022191,2]
[374212279,1753245047559,-460.0,0.00022191,2]
[374212281,1753245047568,-460.0,0.00022191,2]
[374212283,1753245047577,-400.39410562,0.00022191,2]
[374212284,1753245047587,-460.0,0.00022191,2]
[374212287,1753245047598,-460.0,0.00022191,2]
[374212289,1753245047608,-460.0,0.00022191,2]
[374212291,1753245047619,-460.0,0.00022191,2]
[374212293,1753245047628,-460.0,0.00022191,2]
[374212295,1753245047638,-460.0,0.00022191,2]
[374212297,1753245047647,-467.34716009,0.00022191,2]
[374212298,1753245047656,-158.647154,0.00022191,7]
[374212301,1753245047665,-158.647154,0.00022191,7]
[374212303,1753245047675,-158.647154,0.00022191,7]
[374212305,1753245047684,-158.647154,0.00022191,7]
[374212307,1753245047694,-460.0,0.00022191,2]
[374212309,1753245047703,-460.0,0.00022191,2]
[374212311,1753245047712,-460.0,0.00022191,2]
[374212312,1753245047722,-460.0,0.00022191,2]
[374212314,1753245047731,-460.0,0.00022191,2]
[374212316,1753245047740,-460.0,0.00022191,2]
[374212318,1753245047750,-460.0,0.00022191,2]
[374212320,1753245047759,-461.5182839,0.00022191,2]
[374212322,1753245047767,-460.0,0.00022191,2]
[374212324,1753245047776,-460.0,0.00022191,2]
[374212326,1753245047785,-460.0,0.00022191,2]
[374212328,1753245047794,-460.0,0.00022191,2]
[374212330,1753245047804,-460.0,0.00022191,2]
[374212333,1753245047813,-460.0,0.00022191,2]
[374212335,1753245047823,-460.0,0.00022191,2]
[374212336,1753245047832,-1678.91,0.00022191,2]
[374212339,1753245047841,-460.0,0.00022191,2]
[374212341,1753245047851,-460.0,0.00022191,2]
[374212343,1753245047861,-460.0,0.00022191,2]
[374212345,1753245047871,-460.0,0.00022191,2]
[374212346,1753245047880,-1213.93,0.00022191,2]
[374212349,1753245047889,-151.0,0.00022191,7]
[374212351,1753245047899,-466.52060246,0.00022191,2]
[374212353,1753245047908,-218.543623,0.00022191,7]
[374212355,1753245047919,-460.0,0.00022191,2]
[374212357,1753245047929,-460.0,0.00022191,2]
[374212359,1753245047939,-460.0,0.00022191,2]
[374212361,1753245047948,-463.11613877,0.00022191,2]
[374212363,1753245047958,-2119.6,0.00022191,2]
[374212365,1753245047967,-460.0,0.00022191,2]
[374212367,1753245047977,-460.0,0.00022191,2]
[374212369,1753245047986,-460.0,0.00022191,2]
[374212371,1753245047995,-460.0,0.00022191,2]
[374212373,1753245048004,-460.0,0.00022191,2]
[374212375,1753245048014,-460.0,0.00022191,2]
[374212377,1753245048023,-456.13171285,0.00022191,2]
[374212379,1753245048033,-460.0,0.00022191,2]
[374212381,1753245048043,-460.0,0.00022191,2]
[374212383,1753245048053,-460.0,0.00022191,2]
[374212385,1753245048062,-460.0,0.00022191,2]
[374212387,1753245048072,-460.0,0.00022191,2]
[374212389,1753245048081,-460.0,0.00022191,2]
[374212391,1753245048091,-463.99089,0.00022191,2]
[374212393,1753245048099,-460.0,0.00022191,2]
[374212395,1753245048109,-460.0,0.00022191,2]
[374212397,1753245048118,-460.0,0.00022191,2]
[374212399,1753245048127,-460.0,0.00022191,2]
[374212401,1753245048136,-460.0,0.00022191,2]
[374212403,1753245048145,-460.0,0.00022191,2]
[374212405,1753245048155,-460.0,0.00022191,2]
[374212407,1753245048164,-460.0,0.00022191,2]
[374212409,1753245048174,-460.0,0.00022191,2]
[374212411,1753245048188,-460.0,0.00022191,2]
[374212413,1753245048197,-1298.88,0.00022191,2]
[374212415,1753245048206,-468.19998978,0.00022191,2]
[374212417,1753245048216,-460.0,0.00022191,2]
[374212420,1753245048229,-463.59684902,0.00022191,2]
[374212422,1753245048238,-460.0,0.00022191,2]
[374212424,1753245048247,-460.0,0.00022191,2]
[374212426,1753245048257,-1537.6,0.00022191,2]
[374212428,1753245048267,-460.0,0.00022191,2]
[374212429,1753245048276,-460.0,0.00022191,2]
[374212430,1753245048286,-256.17110851,0.00022191,2]
[374212431,1753245048296,-460.0,0.00022191,2]
[374212432,1753245048306,-460.0,0.00022191,2]
[374212433,1753245048316,-460.0,0.00022191,2]
[374212435,1753245048326,-460.0,0.00022191,2]
[374212437,1753245048335,-460.0,0.00022191,2]
[374212439,1753245048344,-460.0,0.00022191,2]
[374212441,1753245048354,-460.0,0.00022191,2]
[374212443,1753245048363,-460.0,0.00022191,2]
[374212445,1753245048372,-1468.89,0.00022191,2]
[374212447,1753245048381,-670.43,0.00022191,2]
[374212449,1753245048390,-460.0,0.00022191,2]
[374212451,1753245048399,-460.0,0.00022191,2]
[374212453,1753245048408,-460.0,0.00022191,2]
[374212455,1753245048418,-460.0,0.00022191,2]
[374212457,1753245048427,-460.0,0.00022191,2]
[374212459,1753245048437,-460.0,0.00022191,2]
[374212461,1753245048447,-1580.88,0.00022191,2]
[374212463,1753245048456,-460.0,0.00022191,2]
[374212465,1753245048465,-460.0,0.00022191,2]
[374212467,1753245048475,-460.0,0.00022191,2]
[374212470,1753245048484,-460.0,0.00022191,2]
[374212472,1753245048493,-460.0,0.00022191,2]
[374212473,1753245048502,-460.0,0.00022191,2]
[374212475,1753245048511,-531.99802322,0.00022191,2]
[374212477,1753245048521,-194.91770872,0.00022191,2]
[374212480,1753245048531,-460.0,0.00022191,2]
[374212482,1753245048540,-460.0,0.00022191,2]
[374212484,1753245048550,-526.1,0.00022191,2]
[374212486,1753245048560,-460.0,0.00022191,2]
[374212488,1753245048569,-460.0,0.00022191,2]
[374212489,1753245048579,-463.03838431,0.00022191,2]
[374212491,1753245048588,-460.0,0.00022191,2]
[374212493,1753245048597,-460.0,0.00022191,2]
[374212495,1753245048606,-460.0,0.00022191,2]
[374212497,1753245048615,-460.0,0.00022191,2]
[374212499,1753245048624,-460.0,0.00022191,2]
[374212501,1753245048634,-460.0,0.00022191,2]
[374212503,1753245048643,-460.0,0.00022191,2]
[374212505,1753245048653,-460.0,0.00022191,2]
[374212507,1753245048662,-468.37634155,0.00022191,2]
[374212509,1753245048671,-460.0,0.00022191,2]
[374212511,1753245048681,-510.0,0.00022191,2]
[374212513,1753245048690,-2016.14,0.00022191,2]
[374212515,1753245048699,-460.0,0.00022191,2]
[374212517,1753245048709,-460.0,0.00022191,2]
[374212520,1753245048718,-460.0,0.00022191,2]
[374212522,1753245048728,-1063.69,0.00022191,2]
[374212523,1753245048737,-405.4754075,0.00022191,2]
[374212526,1753245048747,-460.0,0.00022191,2]
[374212528,1753245048756,-3700.68,0.00022191,2]
[374212530,1753245048766,-460.0,0.00022191,2]
[374212531,1753245048774,-460.0,0.00022191,2]
[374212534,1753245048784,-1841.3,0.00022191,2]
[374212536,1753245048793,-460.0,0.00022191,2]
[374212537,1753245048802,-461.73942269,0.00022191,2]
[374212540,1753245048811,-460.0,0.00022191,2]
[374212542,1753245048821,-151.0,0.000222,6]
[374212544,1753245048830,-151.0,0.000222,8]
[374212546,1753245048839,-2452.0,0.00022265,2]
[374212547,1753245048849,-2452.0,0.00022269,2]
[374212550,1753245048859,-5976.71230369,0.00022279,6]
[374212552,1753245048868,-2452.0,0.00022381,2]
[374212554,1753245048877,-245.285082,0.00022383,7]
[374212556,1753245048886,-932.37942252,0.00022416,2]
[374212558,1753245048895,-155.451601,0.00022454,3]
[374212560,1753245048904,-560.0,0.00022458,2]
[374212562,1753245048913,-5356.69357085,0.00022463,2]
[374212564,1753245048923,-460.0,0.00022465,2]
[374212566,1753245048932,-460.0,0.00022465,2]
[374212568,1753245048942,-460.0,0.00022465,2]
[374212570,1753245048952,-460.0,0.00022465,2]
[374212572,1753245048961,-299.15788632,0.00022465,2]
[374212573,1753245048970,-460.0,0.00022465,2]
[374212575,1753245048980,-460.0,0.00022465,2]
[374212578,1753245048990,-463.29544087,0.00022465,2]
[374212579,1753245048999,-472.46262067,0.00022465,2]
[374212581,1753245049009,-470.06061491,0.00022465,2]
[374212584,1753245049018,-460.0,0.00022465,2]
[374212586,1753245049027,-461.31632317,0.00022465,2]
[374212588,1753245049037,-460.0,0.00022465,2]
[374212590,1753245049046,-460.0,0.00022465,2]
[374212592,1753245049056,-464.94195844,0.00022465,2]
[374212593,1753245049065,-461.63009374,0.00022465,2]
[374212603,1753245049149,-466.67324343,0.00022465,2]
[374212605,1753245049159,-464.44031236,0.00022465,2]
[374212607,1753245049168,-460.0,0.00022465,2]
[374212609,1753245049177,-598.1181684,0.00022465,2]
[374212611,1753245049187,-460.0,0.00022465,2]
[374212614,1753245049196,-460.0,0.00022465,2]
[374212616,1753245049204,-460.0,0.00022465,2]
[374212618,1753245049214,-460.0,0.00022465,2]
[374212619,1753245049223,-460.0,0.00022465,2]
[374212621,1753245049232,-460.0,0.00022465,2]
[374212624,1753245049242,-460.0,0.00022465,2]
[374212626,1753245049251,-460.0,0.00022465,2]
[374212627,1753245049260,-460.0,0.00022465,2]
[374212629,1753245049269,-463.808894,0.00022465,2]
[374212631,1753245049279,-460.0,0.00022465,2]
[374212634,1753245049288,-460.0,0.00022465,2]
[374212635,1753245049297,-460.0,0.00022465,2]
[374212638,1753245049306,-460.0,0.00022465,2]
[374212639,1753245049315,-460.0,0.00022465,2]
[374212641,1753245049324,-460.0,0.00022465,2]
[374212644,1753245049333,-460.0,0.00022465,2]
[374212646,1753245049342,-460.0,0.00022465,2]
[374212647,1753245049351,-460.0,0.00022465,2]
[374212649,1753245049360,-460.0,0.00022465,2]
[374212652,1753245049370,-460.0,0.00022465,2]
[374212654,1753245049380,-460.0,0.00022465,2]
[374212656,1753245049389,-460.0,0.00022465,2]
[374212658,1753245049398,-2224.01,0.00022465,2]
[374212660,1753245049408,-460.0,0.00022465,2]
[374212662,1753245049417,-460.0,0.00022465,2]
[374212664,1753245049426,-460.0,0.00022465,2]
[374212666,1753245049435,-465.86880002,0.00022465,2]
[374212668,1753245049444,-460.0,0.00022465,2]
[374212670,1753245049454,-463.45058768,0.00022465,2]
[374212672,1753245049463,-468.71124717,0.00022465,2]
[374212674,1753245049472,-465.22339676,0.00022465,2]
[374212676,1753245049482,-474.3271977,0.00022465,2]
[374212678,1753245049491,-460.0,0.00022465,2]
[374212679,1753245049499,-460.0,0.00022465,2]
[374212682,1753245049509,-460.0,0.00022465,2]
[374212683,1753245049518,-447.69042373,0.00022465,2]
[374212686,1753245049527,-460.0,0.00022465,2]
[374212687,1753245049536,-460.0,0.00022465,2]
[374212690,1753245049545,-460.0,0.00022465,2]
[374212692,1753245049561,-448.27062193,0.00022465,2]
[374212694,1753245049573,-1306.7,0.00022465,2]
[374212696,1753245049590,-460.0,0.00022465,2]
[374212698,1753245049599,-460.0,0.00022465,2]
[374212700,1753245049608,-460.0,0.00022465,2]
[374212702,1753245049617,-310.55483868,0.00022465,2]
[374212704,1753245049627,-460.0,0.00022465,2]
[374212706,1753245049636,-466.41807707,0.00022465,2]
[374212708,1753245049645,-460.0,0.00022465,2]
[374212710,1753245049654,-460.0,0.00022465,2]
[374212712,1753245049663,-460.0,0.00022465,2]
[374212714,1753245049672,-513.42699304,0.00022465,2]
[374212716,1753245049682,-460.0,0.00022465,2]
[374212718,1753245049690,-472.37713478,0.00022465,2]
[374212720,1753245049700,-460.0,0.00022465,2]
[374212722,1753245049709,-460.0,0.00022465,2]
[374212724,1753245049717,-998.31,0.00022465,2]
[374212726,1753245049727,-460.0,0.00022465,2]
[374212728,1753245049736,-309.12324097,0.00022465,2]
[374212730,1753245049746,-460.0,0.00022465,2]
[374212732,1753245049755,-460.0,0.00022465,2]
[374212734,1753245049764,-465.3565456,0.00022465,2]
[374212736,1753245049773,-460.0,0.00022465,2]
[374212738,1753245049782,-460.0,0.00022465,2]
[374212740,1753245049791,-460.0,0.00022465,2]
[374212742,1753245049800,-460.0,0.00022465,2]
[374212744,1753245049809,-158.647154,0.00022465,7]
[374212746,1753245049818,-158.647159,0.00022465,7]
[374212748,1753245049827,-460.0,0.00022465,2]
[374212750,1753245049836,-464.55347186,0.00022465,2]
[374212752,1753245049845,-460.0,0.00022465,2]
[374212754,1753245049854,-460.0,0.00022465,2]
[374212756,1753245049863,-460.0,0.00022465,2]
[374212758,1753245049873,-460.0,0.00022465,2]
[374212760,1753245049883,-460.0,0.00022465,2]
[374212762,1753245049892,-460.0,0.00022465,2]
[374212764,1753245049901,-460.0,0.00022465,2]
[374212766,1753245049910,-460.0,0.00022465,2]
[374212768,1753245049920,-460.0,0.00022465,2]
[374212770,1753245049929,-460.0,0.00022465,2]
[374212772,1753245049938,-1678.91,0.00022465,2]
[374212774,1753245049947,-460.0,0.00022465,2]
[374212776,1753245049956,-460.0,0.00022465,2]
[374212778,1753245049965,-460.0,0.00022465,2]
[374212780,1753245049975,-476.47201731,0.00022465,2]
[374212782,1753245049984,-1213.93,0.00022465,2]
[374212784,1753245049993,-460.0,0.00022465,2]
[374212786,1753245050003,-460.0,0.00022465,2]
[374212788,1753245050012,-460.0,0.00022465,2]
[374212790,1753245050021,-2119.6,0.00022465,2]
[374212792,1753245050030,-460.0,0.00022465,2]
[374212794,1753245050039,-460.0,0.00022465,2]
[374212796,1753245050048,-463.46768373,0.00022465,2]
[374212798,1753245050058,-460.0,0.00022465,2]
[374212800,1753245050066,-460.0,0.00022465,2]
[374212802,1753245050075,-460.0,0.00022465,2]
[374212804,1753245050084,-460.0,0.00022465,2]
[374212806,1753245050093,-460.0,0.00022465,2]
[374212808,1753245050102,-460.0,0.00022465,2]
[374212810,1753245050111,-460.0,0.00022465,2]
[374212812,1753245050120,-460.0,0.00022465,2]
[374212814,1753245050129,-460.0,0.00022465,2]
[374212817,1753245050139,-460.0,0.00022465,2]
[374212819,1753245050148,-468.75941125,0.00022465,2]
[374212821,1753245050157,-599.02740519,0.00022465,2]
[374212823,1753245050166,-460.0,0.00022465,2]
[374212825,1753245050175,-463.31154415,0.00022465,2]
[374212827,1753245050188,-460.0,0.00022465,2]
[374212829,1753245050197,-460.0,0.00022465,2]
[374212831,1753245050207,-460.0,0.00022465,2]
[374212833,1753245050216,-1298.88,0.00022465,2]
[374212835,1753245050227,-460.0,0.00022465,2]
[374212837,1753245050236,-460.0,0.00022465,2]
[374212839,1753245050245,-460.0,0.00022465,2]
[374212841,1753245050254,-1537.6,0.00022465,2]
[374212843,1753245050265,-460.0,0.00022465,2]
[374212845,1753245050275,-460.0,0.00022465,2]
[374212847,1753245050284,-460.0,0.00022465,2]
[374212849,1753245050294,-460.0,0.00022465,2]
[374212851,1753245050303,-460.0,0.00022465,2]
[374212853,1753245050312,-460.0,0.00022465,2]
[374212855,1753245050321,-460.0,0.00022465,2]
[374212857,1753245050330,-460.0,0.00022465,2]
[374212859,1753245050339,-1468.89,0.00022465,2]
[374212861,1753245050349,-670.43,0.00022465,2]
[374212863,1753245050358,-596.34909493,0.00022465,2]
[374212865,1753245050367,-462.50244306,0.00022465,2]
[374212867,1753245050376,-460.0,0.00022465,2]
[374212869,1753245050386,-460.0,0.00022465,2]
[374212871,1753245050396,-460.0,0.00022465,2]
[374212873,1753245050405,-460.0,0.00022465,2]
[374212876,1753245050415,-1580.88,0.00022465,2]
[374212878,1753245050423,-460.0,0.00022465,2]
[374212880,1753245050433,-460.0,0.00022465,2]
[374212882,1753245050442,-466.38558043,0.00022465,2]
[374212884,1753245050451,-460.0,0.00022465,2]
[374212886,1753245050461,-460.0,0.00022465,2]
[374212888,1753245050471,-460.0,0.00022465,2]
[374212890,1753245050480,-460.0,0.00022465,2]
[374212892,1753245050489,-1498.23,0.00022465,2]
[374212894,1753245050499,-460.0,0.00022465,2]
[374212896,1753245050508,-460.0,0.00022465,2]
[374212898,1753245050518,-460.0,0.00022465,2]
[374212900,1753245050527,-460.0,0.00022465,2]
[374212902,1753245050536,-460.0,0.00022465,2]
[374212904,1753245050545,-510.0,0.00022465,2]
[374212906,1753245050555,-2016.14,0.00022465,2]
[374212908,1753245050565,-460.0,0.00022465,2]
[374212910,1753245050574,-470.36941389,0.00022465,2]
[374212912,1753245050583,-460.0,0.00022465,2]
[374212914,1753245050592,-1063.69,0.00022465,2]
[374212916,1753245050601,-460.0,0.00022465,2]
[374212918,1753245050610,-3700.68,0.00022465,2]
[374212920,1753245050619,-460.0,0.00022465,2]
[374212922,1753245050629,-1841.3,0.00022465,2]
[374212932,1753245050706,-463.06082664,0.00022465,2]
[374212934,1753245050716,-460.0,0.00022465,2]
[374212936,1753245050724,-500.0,0.00022473,2]
[374212938,1753245050734,-500.43577641,0.00022473,2]
[374212940,1753245050743,-500.0,0.00022473,2]
[374212942,1753245050753,-500.0,0.00022473,2]
[374212944,1753245050762,-566.47745381,0.00022473,2]
[374212946,1753245050772,-165.8063407,0.00022473,2]
[374212948,1753245050782,-500.0,0.00022473,2]
[374212950,1753245050791,-160.28662095,0.00022473,2]
[374212951,1753245050800,-500.0,0.00022473,2]
[374212952,1753245050808,-522.44810605,0.00022473,2]
[374212953,1753245050817,-500.0,0.00022473,2]
[374212954,1753245050826,-500.55543963,0.00022473,2]
[374212955,1753245050835,-500.0,0.00022473,2]
[374212956,1753245050844,-500.9703602,0.00022473,2]
[374212957,1753245050853,-500.0,0.00022473,2]
[374212958,1753245050862,-500.0,0.00022473,2]
[374212959,1753245050871,-500.0,0.00022473,2]
[374212960,1753245050880,-520.75550898,0.00022473,2]
[374212961,1753245050890,-156.64231511,0.00022473,2]
[374212962,1753245050899,-1500.0,0.00022478,2]
[374212964,1753245050908,-25391.80113581,0.0002249,7]
[374212966,1753245050918,-151.0,0.000225,9]
[374212968,1753245050927,-151.0,0.000225,8]
[374212970,1753245050936,-429.674968,0.00022503,2]
[374212972,1753245050946,-435.1866132,0.00022503,2]
[374212974,1753245050955,-370.9975937,0.00022521,2]
[374212976,1753245050964,-1000.0,0.00022521,2]
[374212978,1753245050974,-486.27875379,0.00022521,2]
[374212980,1753245050984,-1000.0,0.00022521,2]
[374212982,1753245050995,-5976.71230369,0.00022521,7]
[374212984,1753245051005,-2452.0,0.00022538,2]
[374212986,1753245051014,-155.451601,0.00022556,2]
[374212989,1753245051024,-2452.0,0.00022556,2]
[374212990,1753245051043,-187.0,0.00022626,2]
[374212993,1753245051052,-504.1,0.00022631,2]
[374212994,1753245051062,-187.0,0.00022712,2]
[374212996,1753245051071,-485.2716597,0.00022721,2]
[374212998,1753245051080,-504.19548328,0.00022721,2]
[374213000,1753245051089,-877.62175577,0.00022721,2]
[374213002,1753245051099,-1000.0,0.00022721,2]
[374213004,1753245051107,-155.451601,0.00022731,3]
[374213006,1753245051117,-460.0,0.00022739,2]
[374213008,1753245051126,-466.99846763,0.00022739,2]
[374213010,1753245051135,-460.0,0.00022739,2]
[374213012,1753245051144,-460.0,0.00022739,2]
[374213014,1753245051153,-466.47559134,0.00022739,2]
[374213016,1753245051162,-460.0,0.00022739,2]
[374213018,1753245051171,-460.0,0.00022739,2]
[374213020,1753245051180,-450.0,0.00022739,2]
[374213022,1753245051189,-310.00000032,0.00022739,2]
[374213024,1753245051199,-460.0,0.00022739,2]
[374213026,1753245051209,-460.0,0.00022739,2]
[374213028,1753245051218,-460.0,0.00022739,2]